fUST/lending_fUST_20241220
["ID","MTS","AMOUNT","RATE_DAILY","PERIOD"]
[346013476,1734624645411,-500.0,0.00024657,6]
[346013478,1734624645420,-500.0,0.00024657,6]
[346013480,1734624645430,-500.0,0.00024657,6]
[346013482,1734624645439,-500.0,0.00024657,6]
[346013484,1734624645448,-500.0,0.00024657,2]
[346013486,1734624645457,-500.0,0.00024657,6]
[346013488,1734624645467,-500.0,0.00024657,6]
[346013490,1734624645476,-500.0,0.00024657,6]
[346013492,1734624645485,-500.0,0.00024657,6]
[346013494,1734624645494,-500.0,0.00024657,6]
[346013496,1734624645504,-501.94082071,0.00024657,6]
[346013498,1734624645514,-500.0,0.00024657,6]
[346013500,1734624645523,-623.0396062,0.00024657,6]
[346013502,1734624645532,-500.0,0.00024657,6]
[346013504,1734624645542,-501.00844084,0.00024657,6]
[346013506,1734624645552,-500.0,0.00024657,6]
[346013508,1734624645563,-500.0,0.00024657,6]
[346013510,1734624645572,-500.0,0.00024657,6]
[346013512,1734624645582,-500.0,0.00024657,6]
[346013514,1734624645591,-500.0,0.00024657,6]
[346013516,1734624645601,-500.0,0.00024657,6]
[346013518,1734624645610,-500.0,0.00024657,6]
[346013520,1734624645620,-500.0,0.00024657,6]
[346013522,1734624645630,-500.0,0.00024657,6]
[346013524,1734624645639,-500.0,0.00024657,6]
[346013526,1734624645649,-500.0,0.00024657,6]
[346013528,1734624645664,-500.0,0.00024657,6]
[346013530,1734624645673,-500.0,0.00024657,6]
[346013532,1734624645683,-500.0,0.00024657,6]
[346013534,1734624645693,-500.0,0.00024657,6]
[346013536,1734624645703,-521.47638847,0.00024657,6]
[346013538,1734624645713,-500.0,0.00024657,6]
[346013540,1734624645723,-500.0,0.00024657,6]
[346013542,1734624645734,-500.0,0.00024657,6]
[346013544,1734624645743,-500.0,0.00024657,2]
[346013546,1734624645753,-500.0,0.00024657,6]
[346013548,1734624645762,-500.0,0.00024657,6]
[346013550,1734624645772,-500.0,0.00024657,6]
[346013552,1734624645782,-500.0,0.00024657,6]
[346013554,1734624645791,-500.0,0.00024657,6]
[346013556,1734624645801,-500.0,0.00024657,6]
[346013558,1734624645811,-500.0,0.00024657,2]
[346013560,1734624645822,-500.0,0.00024657,6]
[346013562,1734624645831,-500.0,0.00024657,6]
[346013564,1734624645840,-748.1,0.00024657,6]
[346013566,1734624645849,-500.0,0.00024657,6]
[346013568,1734624645858,-504.98190484,0.00024657,6]
[346013570,1734624645868,-500.0,0.00024657,6]
[346013572,1734624645877,-500.0,0.00024657,6]
[346013574,1734624645887,-500.0,0.00024657,6]
[346013576,1734624645896,-527.06,0.00024657,6]
[346013578,1734624645909,-500.0,0.00024657,6]
[346013580,1734624645918,-500.0,0.00024657,6]
[346013582,1734624645927,-500.0,0.00024657,6]
[346013584,1734624645936,-500.0,0.00024657,6]
[346013586,1734624645945,-500.0,0.00024657,6]
[346013588,1734624645956,-500.0,0.00024657,6]
[346013590,1734624645965,-500.0,0.00024657,6]
[346013592,1734624645975,-500.0,0.00024657,6]
[346013594,1734624645985,-500.0,0.00024657,6]
[346013596,1734624645995,-500.0,0.00024657,6]
[346013598,1734624646005,-500.0,0.00024657,6]
[346013600,1734624646014,-500.0,0.00024657,6]
[346013602,1734624646023,-500.0,0.00024657,6]
[346013604,1734624646032,-500.0,0.00024657,6]
[346013606,1734624646042,-500.0,0.00024657,6]
[346013608,1734624646051,-521.13,0.00024657,6]
[346013610,1734624646061,-500.0,0.00024657,6]
[346013612,1734624646070,-500.0,0.00024657,6]
[346013614,1734624646079,-500.0,0.00024657,6]
[346013616,1734624646089,-341.5149281,0.00024657,6]
[346013618,1734624646099,-500.0,0.00024657,6]
[346013620,1734624646108,-500.0,0.00024657,6]
[346013622,1734624646117,-500.0,0.00024657,6]
[346013624,1734624646127,-500.0,0.00024657,6]
[346013626,1734624646137,-500.0,0.00024657,6]
[346013628,1734624646147,-500.0,0.00024657,6]
[346013630,1734624646162,-500.0,0.00024657,6]
[346013632,1734624646171,-500.0,0.00024657,6]
[346013634,1734624646181,-500.0,0.00024657,6]
[346013636,1734624646191,-500.0,0.00024657,6]
[346013638,1734624646202,-500.0,0.00024657,6]
[346013640,1734624646212,-502.23311551,0.00024657,6]
[346013642,1734624646222,-500.0,0.00024657,6]
[346013644,1734624646232,-1520.48,0.00024657,6]
[346013646,1734624646242,-500.0,0.00024657,6]
[346013648,1734624646252,-500.0,0.00024657,6]
[346013650,1734624646262,-500.0,0.00024657,6]
[346013652,1734624646271,-500.0,0.00024657,6]
[346013654,1734624646281,-500.0,0.00024657,6]
[346013656,1734624646290,-500.0,0.00024657,6]
[346013658,1734624646299,-500.0,0.00024657,6]
[346013660,1734624646309,-502.7251017,0.00024657,6]
[346013662,1734624646319,-603.04413278,0.00024657,6]
[346013664,1734624646329,-275.86597086,0.00024657,6]
[346013666,1734624646338,-815.3,0.00024657,6]
[346013668,1734624646348,-500.0,0.00024657,6]
[346013670,1734624646357,-537.91133373,0.00024657,6]
[346013672,1734624646366,-531.16825355,0.00024657,6]
[346013674,1734624646376,-658.6,0.00024657,6]
[346013676,1734624646385,-500.0,0.00024657,6]
[346013678,1734624646395,-500.0,0.00024657,6]
[346013680,1734624646409,-500.0,0.00024657,6]
[346013682,1734624646418,-500.0,0.00024657,6]
[346013684,1734624646428,-500.0,0.00024657,6]
[346013686,1734624646437,-500.0,0.00024657,6]
[346013688,1734624646447,-500.0,0.00024657,6]
[346013690,1734624646456,-500.0,0.00024657,6]
[346013692,1734624646465,-500.0,0.00024657,6]
[346013694,1734624646475,-509.36913106,0.00024657,6]
[346013696,1734624646484,-500.0,0.00024657,6]
[346013698,1734624646493,-500.0,0.00024657,6]
[346013700,1734624646503,-500.0,0.00024657,6]
[346013702,1734624646513,-500.0,0.00024657,6]
[346013704,1734624646521,-500.0,0.00024657,6]
[346013706,1734624646531,-500.0,0.00024657,6]
[346013708,1734624646541,-503.76996881,0.00024657,6]
[346013710,1734624646550,-500.0,0.00024657,6]
[346013712,1734624646559,-500.0,0.00024657,6]
[346013720,1734624646642,-500.0,0.00024657,6]
[346013722,1734624646661,-500.0,0.00024657,6]
[346013724,1734624646671,-500.0,0.00024657,6]
[346013725,1734624646680,-500.0,0.00024657,6]
[346013727,1734624646690,-500.0,0.00024657,6]
[346013729,1734624646699,-500.0,0.00024657,6]
[346013731,1734624646709,-500.0,0.00024657,6]
[346013733,1734624646718,-500.0,0.00024657,6]
[346013734,1734624646728,-500.0,0.00024657,6]
[346013736,1734624646738,-500.0,0.00024657,6]
[346013738,1734624646747,-500.0,0.00024657,6]
[346013740,1734624646757,-500.0,0.00024657,6]
[346013742,1734624646766,-1071.52,0.00024657,6]
[346013743,1734624646775,-500.0,0.00024657,6]
[346013745,1734624646784,-311.05721108,0.00024657,6]
[346013747,1734624646793,-586.52836856,0.00024657,6]
[346013749,1734624646803,-500.0,0.00024657,6]
[346013750,1734624646812,-502.59854135,0.00024657,6]
[346013752,1734624646821,-500.0,0.00024657,6]
[346013754,1734624646830,-500.0,0.00024657,6]
[346013756,1734624646839,-699.67,0.00024657,6]
[346013757,1734624646849,-500.0,0.00024657,6]
[346013759,1734624646858,-501.98760351,0.00024657,6]
[346013761,1734624646868,-500.0,0.00024657,6]
[346013763,1734624646878,-644.54,0.00024657,6]
[346013765,1734624646888,-803.1,0.00024657,6]
[346013766,1734624646897,-500.0,0.00024657,6]
[346013768,1734624646908,-500.0,0.00024657,6]
[346013770,1734624646918,-502.16170824,0.00024657,6]
[346013772,1734624646927,-500.0,0.00024657,6]
[346013773,1734624646936,-500.0,0.00024657,6]
[346013775,1734624646946,-500.0,0.00024657,6]
[346013777,1734624646956,-500.0,0.00024657,6]
[346013779,1734624646966,-500.0,0.00024657,6]
[346013781,1734624646976,-500.0,0.00024657,6]
[346013782,1734624646986,-500.0,0.00024657,6]
[346013784,1734624646996,-500.0,0.00024657,6]
[346013786,1734624647005,-500.0,0.00024657,6]
[346013788,1734624647015,-500.0,0.00024657,6]
[346013790,1734624647024,-519.87800472,0.00024657,6]
[346013791,1734624647034,-507.80505777,0.00024657,6]
[346013793,1734624647043,-500.0,0.00024657,6]
[346013795,1734624647053,-500.0,0.00024657,6]
[346013797,1734624647062,-500.0,0.00024657,6]
[346013799,1734624647072,-500.0,0.00024657,6]
[346013801,1734624647085,-500.0,0.00024657,6]
[346013802,1734624647100,-363.00221907,0.00024657,6]
[346013804,1734624647110,-150.05,0.00024657,3]
[346013806,1734624647120,-500.0,0.00024657,6]
[346013808,1734624647130,-500.0,0.00024657,6]
[346013810,1734624647140,-500.0,0.00024657,6]
[346013812,1734624647149,-233.94145809,0.00024657,3]
[346013814,1734624647163,-299.61,0.00024657,3]
[346013816,1734624647172,-500.0,0.00024657,6]
[346013817,1734624647182,-150.05,0.00024657,3]
[346013819,1734624647193,-500.0,0.00024657,6]
[346013821,1734624647203,-507.96072158,0.00024657,6]
[346013823,1734624647213,-500.0,0.00024657,6]
[346013825,1734624647222,-150.05,0.00024657,3]
[346013827,1734624647231,-501.67606738,0.00024657,6]
[346013828,1734624647240,-150.05,0.00024657,3]
[346013830,1734624647251,-500.0,0.00024657,6]
[346013833,1734624647270,-500.0,0.00024657,6]
[346013835,1734624647288,-500.0,0.00024657,6]
[346013838,1734624647307,-500.0,0.00024657,6]
[346013840,1734624647328,-199.58,0.00024657,6]
[346013843,1734624647348,-500.0,0.00024657,6]
[346013846,1734624647365,-200.0,0.00024657,6]
[346013849,1734624647384,-406.07882447,0.00024657,6]
[346013851,1734624647399,-500.0,0.00024657,6]
[346013854,1734624647421,-500.0,0.00024657,6]
[346013857,1734624647440,-500.0,0.00024657,6]
[346013859,1734624647457,-549.3669085,0.00024657,6]
[346013861,1734624647470,-500.0,0.00024657,6]
[346013864,1734624647490,-500.0,0.00024657,6]
[346013866,1734624647503,-500.0,0.00024657,6]
[346013869,1734624647519,-500.0,0.00024657,6]
[346013871,1734624647534,-500.0,0.00024657,6]
[346013872,1734624647548,-500.0,0.00024657,6]
[346013873,1734624647562,-500.0,0.00024657,6]
[346013874,1734624647578,-500.0,0.00024657,6]
[346013875,1734624647593,-500.0,0.00024657,6]
[346013877,1734624647608,-500.0,0.00024657,6]
[346013879,1734624647622,-2932.68,0.00024657,6]
[346013881,1734624647637,-500.0,0.00024657,6]
[346013884,1734624647651,-500.0,0.00024657,6]
[346013886,1734624647668,-500.67074991,0.00024657,6]
[346013888,1734624647684,-500.0,0.00024657,6]
[346013890,1734624647700,-500.0,0.00024657,6]
[346013893,1734624647716,-500.0,0.00024657,6]
[346013895,1734624647733,-500.0,0.00024657,6]
[346013898,1734624647750,-500.0,0.00024657,6]
[346013899,1734624647765,-500.0,0.00024657,6]
[346013900,1734624647781,-555.44941543,0.00024657,6]
[346013901,1734624647797,-519.34972177,0.00024657,6]
[346013902,1734624647818,-500.0,0.00024657,6]
[346013903,1734624647834,-500.0,0.00024657,6]
[346013904,1734624647848,-500.0,0.00024657,6]
[346013905,1734624647864,-500.0,0.00024657,6]
[346013906,1734624647880,-500.0,0.00024657,6]
[346013907,1734624647896,-500.0,0.00024657,6]
[346013908,1734624647916,-504.08971491,0.00024657,6]
[346013909,1734624647931,-500.0,0.00024657,6]
[346013910,1734624647947,-1425.95,0.00024657,6]
[346013911,1734624647963,-500.0,0.00024657,6]
[346013912,1734624647977,-500.0,0.00024657,6]
[346013913,1734624647992,-500.0,0.00024657,6]
[346013914,1734624648007,-182.18022764,0.00024657,6]
[346013915,1734624648022,-500.0,0.00024657,6]
[346013916,1734624648037,-500.0,0.00024657,6]
[346013917,1734624648053,-500.0,0.00024657,6]
[346013918,1734624648068,-500.0,0.00024657,6]
[346013919,1734624648085,-500.0,0.00024657,6]
[346013920,1734624648100,-500.0,0.00024657,6]
[346013921,1734624648116,-500.0,0.00024657,6]
[346013922,1734624648131,-500.0,0.00024657,6]
[346013923,1734624648147,-500.0,0.00024657,6]
[346013924,1734624648169,-500.0,0.00024657,6]
[346013925,1734624648185,-633.47,0.00024657,6]
[346013926,1734624648203,-500.0,0.00024657,6]
[346013927,1734624648218,-500.0,0.00024657,6]
[346013928,1734624648233,-500.0,0.00024657,6]
[346013929,1734624648248,-503.72489928,0.00024657,6]
[346013930,1734624648383,-500.0,0.00024657,6]
[346013931,1734624648402,-500.0,0.00024657,6]
[346013932,1734624648414,-500.0,0.00024657,6]
[346013933,1734624648423,-500.0,0.00024657,6]
[346013934,1734624648433,-500.0,0.00024657,6]
[346013935,1734624648443,-500.0,0.00024657,6]
[346013936,1734624648453,-500.0,0.00024657,6]
[346013937,1734624648463,-504.1035995,0.00024657,6]
[346013938,1734624648473,-500.0,0.00024657,6]
[346013939,1734624648482,-500.0,0.00024657,6]
[346013940,1734624648491,-500.0,0.00024657,6]
[346013941,1734624648501,-500.0,0.00024657,6]
[346013942,1734624648510,-1534.8,0.00024657,6]
[346013943,1734624648520,-500.0,0.00024657,6]
[346013944,1734624648529,-308.62127377,0.00024657,6]
[346013945,1734624648539,-504.42023583,0.00024657,6]
[346013946,1734624648549,-5990.83,0.00024657,2]
[346013947,1734624648558,-500.0,0.00024657,6]
[346013948,1734624648568,-502.35974766,0.00024657,6]
[346013949,1734624648577,-500.0,0.00024657,6]
[346013950,1734624648587,-980.11,0.00024657,6]
[346013951,1734624648596,-500.0,0.00024657,6]
[346013952,1734624648605,-500.0,0.00024657,6]
[346013953,1734624648614,-500.0,0.00024657,2]
[346013954,1734624648623,-1178.8,0.00024657,6]
[346013955,1734624648634,-500.0,0.00024657,6]
[346013956,1734624648644,-500.0,0.00024657,6]
[346013957,1734624648654,-234.71939411,0.00024657,6]
[346013958,1734624648664,-500.0,0.00024657,6]
[346013959,1734624648674,-1028.37,0.00024657,6]
[346013960,1734624648684,-501.12536071,0.00024657,6]
[346013961,1734624648693,-500.0,0.00024657,6]
[346013962,1734624648703,-516.79359723,0.00024657,6]
[346013963,1734624648713,-500.0,0.00024657,6]
[346013964,1734624648722,-969.35,0.00024657,6]
[346013965,1734624648731,-500.0,0.00024657,6]
[346013966,1734624648741,-501.70494999,0.00024657,6]
[346013967,1734624648751,-160.38898489,0.00024657,6]
[346013968,1734624648761,-501.55468763,0.00024657,6]
[346013969,1734624648770,-652.46,0.00024657,6]
[346013970,1734624648780,-1444.21,0.00024657,6]
[346013971,1734624648790,-500.0,0.00024657,6]
[346013972,1734624648800,-504.26902223,0.00024657,6]
[346013973,1734624648809,-500.0,0.00024657,6]
[346013974,1734624648819,-500.0,0.00024657,6]
[346013975,1734624648829,-501.50213987,0.00024657,6]
[346013976,1734624648838,-500.0,0.00024657,6]
[346013977,1734624648848,-579.83511989,0.00024657,6]
[346013978,1734624648857,-500.0,0.00024657,6]
[346013979,1734624648867,-2142.3,0.00024657,6]
[346013980,1734624648877,-500.0,0.00024657,6]
[346013981,1734624648888,-415.90225788,0.00024657,2]
[346013982,1734624648898,-2195.23,0.00024657,6]
[346013983,1734624648910,-500.0,0.00024657,6]
[346013984,1734624648920,-500.0,0.00024657,6]
[346013985,1734624648930,-1001.7936302,0.00024657,6]
[346013986,1734624648940,-500.0,0.00024657,6]
[346013987,1734624648950,-500.0,0.00024657,6]
[346013988,1734624648959,-500.0,0.00024657,6]
[346013989,1734624648970,-500.0,0.00024657,6]
[346013990,1734624648980,-500.0,0.00024657,6]
[346013991,1734624648990,-1647.19,0.00024657,6]
[346013992,1734624649000,-1454.06,0.00024657,6]
[346013993,1734624649009,-825.1,0.00024657,6]
[346013994,1734624649020,-500.0,0.00024657,6]
[346013995,1734624649029,-1252.27,0.00024657,6]
[346013996,1734624649038,-500.0,0.00024657,6]
[346013997,1734624649047,-500.0,0.00024657,6]
[346013998,1734624649059,-2299.56,0.00024657,6]
[346013999,1734624649069,-500.0,0.00024657,6]
[346014000,1734624649078,-500.0,0.00024657,6]
[346014001,1734624649088,-500.0,0.00024657,6]
[346014002,1734624649098,-500.0,0.00024657,6]
[346014003,1734624649107,-500.0,0.00024657,6]
[346014004,1734624649117,-500.0,0.00024657,6]
[346014005,1734624649127,-527.1179748,0.00024657,6]
[346014006,1734624649137,-510.57948753,0.00024657,6]
[346014007,1734624649147,-698.55,0.00024657,6]
[346014008,1734624649161,-500.0,0.00024657,6]
[346014009,1734624649170,-500.0,0.00024657,6]
[346014010,1734624649180,-500.0,0.00024657,6]
[346014011,1734624649190,-500.0,0.00024657,6]
[346014012,1734624649200,-500.0,0.00024657,6]
[346014013,1734624649209,-500.0,0.00024657,6]
[346014014,1734624649219,-469.09196443,0.00024657,6]
[346014015,1734624649228,-500.0,0.00024657,6]
[346014016,1734624649239,-621.4,0.00024657,6]
[346014017,1734624649249,-502.04103327,0.00024657,6]
[346014018,1734624649259,-500.0,0.00024657,6]
[346014019,1734624649268,-542.89910568,0.00024657,6]
[346014020,1734624649278,-632.63,0.00024657,6]
[346014021,1734624649288,-500.0,0.00024657,6]
[346014022,1734624649298,-500.0,0.00024657,6]
[346014023,1734624649306,-683.39,0.00024657,6]
[346014024,1734624649316,-1059.94,0.00024657,6]
[346014025,1734624649325,-332.80625512,0.00024657,6]
[346014026,1734624649334,-500.0,0.00024657,6]
[346014027,1734624649343,-501.88510691,0.00024657,6]
[346014028,1734624649353,-500.0,0.00024657,6]
[346014029,1734624649363,-523.04,0.00024657,6]
[346014030,1734624649372,-500.0,0.00024657,6]
[346014031,1734624649382,-501.71604354,0.00024657,6]
[346014032,1734624649391,-500.0,0.00024657,6]
[346014033,1734624649401,-543.32395124,0.00024657,6]
[346014034,1734624649412,-530.53503891,0.00024657,6]
[346014035,1734624649421,-500.0,0.00024657,6]
[346014036,1734624649431,-1420.14,0.00024657,6]
[346014037,1734624649440,-500.0,0.00024657,6]
[346014038,1734624649450,-564.60903597,0.00024657,6]
[346014039,1734624649459,-500.0,0.00024657,6]
[346014040,1734624649469,-500.0,0.00024657,6]
[346014041,1734624649479,-502.13628791,0.00024657,6]
[346014042,1734624649489,-1174.88,0.00024657,6]
[346014043,1734624649499,-500.0,0.00024657,6]
[346014044,1734624649510,-501.95226282,0.00024657,6]
[346014045,1734624649519,-500.0,0.00024657,6]
[346014046,1734624649529,-500.0,0.00024657,6]
[346014047,1734624649539,-500.0,0.00024657,6]
[346014048,1734624649549,-500.0,0.00024657,6]
[346014049,1734624649559,-500.0,0.00024657,6]
[346014050,1734624649568,-500.0,0.00024657,6]
[346014051,1734624649578,-500.0,0.00024657,6]
[346014052,1734624649588,-500.0,0.00024657,6]
[346014053,1734624649597,-570.80241926,0.00024657,6]
[346014054,1734624649607,-500.0,0.00024657,6]
[346014055,1734624649616,-240.26224905,0.00024657,6]
[346014056,1734624649625,-500.0,0.00024657,6]
[346014057,1734624649635,-500.0,0.00024657,6]
[346014058,1734624649644,-1506.67,0.00024657,6]
[346014059,1734624649654,-501.49703292,0.00024657,6]
[346014060,1734624649664,-404.80478508,0.00024657,6]
[346014061,1734624649674,-500.0,0.00024657,6]
[346014062,1734624649684,-1679.11,0.00024657,6]
[346014063,1734624649693,-504.36299589,0.00024657,6]
[346014064,1734624649704,-637.45915042,0.00024657,6]
[346014065,1734624649713,-500.0,0.00024657,6]
[346014066,1734624649723,-500.0,0.00024657,6]
[346014067,1734624649732,-500.0,0.00024657,6]
[346014068,1734624649741,-500.0,0.00024657,6]
[346014069,1734624649751,-500.73263568,0.00024657,6]
[346014070,1734624649760,-500.0,0.00024657,6]
[346014071,1734624649770,-500.0,0.00024657,6]
[346014072,1734624649779,-500.0,0.00024657,6]
[346014073,1734624649789,-500.0,0.00024657,6]
[346014074,1734624649798,-582.78,0.00024657,6]
[346014075,1734624649807,-502.471614,0.00024657,6]
[346014076,1734624649817,-500.0,0.00024657,6]
[346014077,1734624649826,-500.0,0.00024657,6]
[346014078,1734624649836,-324.81990801,0.00024657,6]
[346014079,1734624649846,-500.0,0.00024657,6]
[346014080,1734624649857,-1066.75,0.00024657,6]
[346014081,1734624649867,-500.0,0.00024657,6]
[346014082,1734624649877,-500.0,0.00024657,6]
[346014083,1734624649887,-500.0,0.00024657,6]
[346014084,1734624649896,-503.25799242,0.00024657,6]
[346014085,1734624649906,-520.42676891,0.00024657,6]
[346014086,1734624649918,-502.31083064,0.00024657,6]
[346014087,1734624649927,-605.07365702,0.00024657,6]
[346014088,1734624649937,-617.12,0.00024657,6]
[346014089,1734624649946,-500.64208967,0.00024657,6]
[346014090,1734624649956,-500.0,0.00024657,6]
[346014091,1734624650051,-205.14237249,0.00024657,6]
[346014092,1734624650066,-500.0,0.00024657,6]
[346014093,1734624650076,-543.32,0.00024657,6]
[346014094,1734624650085,-500.0,0.00024657,6]
[346014095,1734624650094,-500.0,0.00024657,6]
[346014096,1734624650103,-500.0,0.00024657,6]
[346014097,1734624650113,-593.46,0.00024657,6]
[346014098,1734624650123,-206.74352956,0.00024657,6]
[346014099,1734624650132,-1766.87,0.00024657,6]
[346014100,1734624650141,-500.0,0.00024657,6]
[346014101,1734624650152,-500.0,0.00024657,6]
[346014102,1734624650164,-500.0,0.00024657,6]
[346014103,1734624650174,-500.0,0.00024657,6]
[346014104,1734624650183,-501.90828634,0.00024657,6]
[346014105,1734624650195,-1103.93,0.00024657,6]
[346014106,1734624650204,-374.51333593,0.00024657,6]
[346014107,1734624650214,-500.0,0.00024657,6]
[346014108,1734624650224,-2891.47,0.00024657,6]
[346014109,1734624650233,-500.0,0.00024657,6]
[346014110,1734624650243,-500.0,0.00024657,6]
[346014111,1734624650252,-500.0,0.00024657,6]
[346014112,1734624650261,-500.0,0.00024657,6]
[346014113,1734624650271,-500.0,0.00024657,6]
[346014114,1734624650282,-150.05,0.00024657,3]
[346014115,1734624650291,-500.0,0.00024657,6]
[346014116,1734624650301,-500.0,0.00024657,6]
[346014117,1734624650310,-500.0,0.00024657,6]
[346014118,1734624650320,-1005.78687129,0.00024657,6]
[346014119,1734624650329,-159.09932734,0.00024657,3]
[346014120,1734624650339,-501.56258913,0.00024657,6]
[346014121,1734624650348,-1353.52,0.00024657,6]
[346014122,1734624650358,-500.0,0.00024657,6]
[346014123,1734624650367,-163.74599293,0.00024657,3]
[346014124,1734624650377,-500.0,0.00024657,6]
[346014125,1734624650386,-2432.12,0.00024657,6]
[346014126,1734624650396,-500.0,0.00024657,6]
[346014127,1734624650406,-894.51,0.00024657,6]
[346014128,1734624650415,-151.60887588,0.00024657,3]
[346014129,1734624650424,-500.0,0.00024657,6]
[346014130,1734624650434,-501.76341427,0.00024657,6]
[346014131,1734624650443,-500.0,0.00024657,6]
[346014132,1734624650452,-500.0,0.00024657,6]
[346014133,1734624650462,-500.0,0.00024657,6]
[346014134,1734624650471,-500.0,0.00024657,6]
[346014135,1734624650480,-500.0,0.00024657,6]
[346014136,1734624650490,-636.86,0.00024657,6]
[346014137,1734624650499,-500.0,0.00024657,6]
[346014138,1734624650509,-500.0,0.00024657,6]
[346014139,1734624650518,-719.38,0.00024657,6]
[346014140,1734624650527,-500.0,0.00024657,6]
[346014141,1734624650536,-1773.28,0.00024657,6]
[346014142,1734624650546,-500.0,0.00024657,6]
[346014143,1734624650555,-4186.23,0.00024657,6]
[346014144,1734624650566,-839.97,0.00024657,6]
[346014145,1734624650575,-1860.71,0.00024657,6]
[346014146,1734624650584,-696.64,0.00024657,6]
[346014147,1734624650593,-500.0,0.00024657,6]
[346014148,1734624650603,-500.0,0.00024657,6]
[346014149,1734624650612,-3002.06,0.00024657,6]
[346014150,1734624650621,-500.0,0.00024657,6]
[346014151,1734624650631,-500.0,0.00024657,6]
[346014152,1734624650640,-500.0,0.00024657,6]
[346014153,1734624650650,-4836.59,0.00024657,6]
[346014154,1734624650660,-500.0,0.00024657,6]
[346014155,1734624650670,-26671.97,0.00024657,6]
[346014156,1734624650679,-500.0,0.00024657,6]
[346014157,1734624650688,-390.24810665,0.00024657,6]
[346014158,1734624650698,-541.53,0.00024657,6]
[346014159,1734624650707,-500.0,0.00024657,6]
[346014160,1734624650717,-2898.88,0.00024657,2]
[346014161,1734624650726,-500.0,0.00024657,6]
[346014162,1734624650735,-2338.15,0.00024657,6]
[346014163,1734624650745,-500.0,0.00024657,6]
[346014164,1734624650755,-500.0,0.00024657,6]
[346014165,1734624650764,-500.0,0.00024657,6]
[346014166,1734624650774,-500.0,0.00024657,6]
[346014167,1734624650783,-500.0,0.00024657,6]
[346014168,1734624650793,-500.0,0.00024657,6]
[346014169,1734624650803,-500.0,0.00024657,6]
[346014170,1734624650812,-500.0,0.00024657,2]
[346014171,1734624650821,-21796.0,0.00024657,6]
[346014172,1734624650831,-500.0,0.00024657,6]
[346014173,1734624650840,-226.31484831,0.00024657,6]
[346014174,1734624650849,-500.0,0.00024657,6]
[346014175,1734624650859,-500.0,0.00024657,6]
[346014176,1734624650868,-500.0,0.00024657,6]
[346014177,1734624650877,-500.0,0.00024657,6]
[346014178,1734624650887,-500.0,0.00024657,6]
[346014179,1734624650896,-500.0,0.00024657,6]
[346014180,1734624650907,-1013.48,0.00024657,6]
[346014181,1734624650917,-10882.05,0.00024657,6]
[346014182,1734624650927,-500.0,0.00024657,6]
[346014183,1734624650936,-500.0,0.00024657,6]
[346014184,1734624650945,-500.0,0.00024657,6]
[346014185,1734624650955,-1560.9,0.00024657,6]
[346014186,1734624650964,-500.0,0.00024657,6]
[346014187,1734624650973,-500.0,0.00024657,6]